bitfinex-derivatives/quotes_BTCF0:USTF0_20260214
["timestamp","ask_amount","ask_price","bid_price","bid_amount"]
[1771042579349,0.01452,68937.0,68926.0,0.017516]
[1771042579555,0.04652,68937.0,68926.0,0.017516]
[1771042580056,0.01452,68937.0,68926.0,0.014516]
[1771042580256,0.031,68936.0,68926.0,0.003]
[1771042581756,0.04652,68937.0,68926.0,0.003]
[1771042582263,0.01452,68937.0,68925.0,0.014516]
[1771042582559,0.041,68936.0,68926.0,0.004]
[1771042582959,0.05652,68937.0,68926.0,0.004]
[1771042583461,0.01452,68937.0,68925.0,0.014516]
[1771042583662,0.05652,68937.0,68925.0,0.018516]
[1771042584963,0.01452,68937.0,68925.0,0.014516]
[1771042586165,0.05952,68937.0,68925.0,0.019516]
[1771042586463,0.05952,68937.0,68926.0,0.014516]
[1771042588161,0.05952,68937.0,68926.0,0.019516]
[1771042588359,0.045,68937.0,68932.0,0.014514]
[1771042588561,0.01452,68938.0,68929.0,0.05520651]
[1771042588760,0.045,68937.0,68929.0,0.05520651]
[1771042589655,0.045,68937.0,68929.0,0.014515]
[1771042590165,0.045,68937.0,68927.0,0.029036]
[1771042590465,0.045,68937.0,68927.0,0.01452]
[1771042590964,0.02552,68938.0,68929.0,0.002]
[1771042591565,0.02,68937.0,68927.0,0.01852]
[1771042592069,0.01452,68938.0,68927.0,0.01452]
[1771042592562,0.01452,68938.0,68929.0,0.003]
[1771042592865,0.048033,68938.0,68929.0,0.003]
[1771042593166,0.03352,68938.0,68929.0,0.003]
[1771042594363,0.03352,68938.0,68927.0,0.01452]
[1771042594572,0.027,68937.0,68927.0,0.01952]
[1771042595062,0.01452,68938.0,68927.0,0.01452]
[1771042596164,0.025,68937.0,68927.0,0.01952]
[1771042597768,0.04452,68938.0,68927.0,0.01952]
[1771042598270,0.01452,68938.0,68927.0,0.01452]
[1771042598457,0.026,68937.0,68927.0,0.01952]
[1771042599073,0.04352,68938.0,68927.0,0.01952]
[1771042599276,0.058033,68938.0,68927.0,0.01952]
[1771042599478,0.09813171,68938.0,68927.0,0.01952]
[1771042600681,0.015,68937.0,68927.0,0.01952]
[1771042601377,0.014513,68937.0,68927.0,0.01952]
[1771042601782,0.014513,68937.0,68927.0,0.01452]
[1771042601977,0.029513,68937.0,68927.0,0.01952]
[1771042603085,0.030513,68937.0,68927.0,0.01952]
[1771042604774,0.014513,68937.0,68927.0,0.01452]
[1771042605896,0.021513,68937.0,68927.0,0.01452]
[1771042611296,0.00808,68936.0,68927.0,0.01452]
[1771042611596,0.01452,68935.0,68927.0,0.01452]
[1771042612593,0.01452,68935.0,68927.0,0.04452]
[1771042614602,0.02052,68935.0,68927.0,0.04452]
[1771042621106,0.02052,68935.0,68927.0,0.08393892]
[1771042621604,0.02052,68935.0,68927.0,0.09845392]
[1771042622010,0.02052,68935.0,68927.0,0.08393892]
[1771042622207,0.00644,68937.0,68928.0,0.03941892]
[1771042623708,0.003,68935.0,68928.0,0.03941892]
[1771042624213,0.00644,68937.0,68928.0,0.03941892]
[1771042624516,0.00844,68937.0,68928.0,0.05541892]
[1771042624715,0.00844,68937.0,68929.0,0.03941892]
[1771042625013,0.004,68935.0,68929.0,0.03941892]
[1771042626403,0.00944,68937.0,68929.0,0.03941892]
[1771042626607,0.00944,68937.0,68929.0,0.05393892]
[1771042627013,0.002,68935.0,68929.0,0.05393892]
[1771042627715,0.00644,68937.0,68929.0,0.05393892]
[1771042628217,0.00644,68937.0,68929.0,0.05493892]
[1771042630121,0.00644,68937.0,68929.0,0.05393892]
[1771042630820,0.00644,68937.0,68929.0,0.01752]
[1771042633823,0.00644,68937.0,68929.0,0.01552]
[1771042634410,0.00644,68937.0,68929.0,0.01452]
[1771042634715,0.00644,68937.0,68929.0,0.01552]
[1771042644531,0.00644,68937.0,68929.0,0.01652]
[1771042647526,0.00644,68937.0,68929.0,0.01452]
[1771042647725,0.00644,68937.0,68929.0,0.01652]
[1771042650919,0.00644,68937.0,68930.0,0.03941892]
[1771042652530,0.01452,68940.0,68930.0,0.04141892]
[1771042652729,0.01596794,68943.0,68930.0,0.04141892]
[1771042652936,0.01452,68947.0,68938.0,0.03875979]
[1771042653723,0.029031,68947.0,68936.0,0.01452]
[1771042654222,0.01452,68947.0,68936.0,0.01452]
[1771042655633,0.01752,68947.0,68936.0,0.05327979]
[1771042656933,0.01652,68947.0,68936.0,0.05327979]
[1771042657425,0.01752,68947.0,68936.0,0.05327979]
[1771042659134,0.01652,68947.0,68936.0,0.05327979]
[1771042659733,0.01552,68947.0,68936.0,0.05327979]
[1771042660235,0.01452,68947.0,68936.0,0.05327979]
[1771042660428,0.01552,68947.0,68936.0,0.05327979]
[1771042666028,0.01552,68947.0,68937.0,0.05137047]
[1771042666734,0.01552,68947.0,68938.0,0.03685747]
[1771042667238,0.01452,68949.0,68939.0,0.05137747]
[1771042667430,0.001,68947.0,68940.0,0.03685747]
[1771042668940,0.01452,68950.0,68940.0,0.03685747]
[1771042670141,0.01552,68950.0,68940.0,0.03685747]
[1771042670539,0.001,68950.0,68942.0,0.03685747]
[1771042670836,0.001,68950.0,68943.0,0.03685747]
[1771042672037,0.01452,68953.0,68943.0,0.03685747]
[1771042673039,0.14516,68965.0,68948.0,0.05136847]
[1771042673231,0.01452,68964.0,68950.0,0.03685747]
[1771042673436,0.01452,68964.0,68950.0,0.05137747]
[1771042675150,0.01652,68964.0,68950.0,0.05137747]
[1771042675337,0.01652,68964.0,68951.0,0.03685747]
[1771042676541,0.01452,68964.0,68951.0,0.03685747]
[1771042676734,0.01652,68964.0,68951.0,0.03685747]
[1771042679550,0.01652,68964.0,68950.0,0.01452]
[1771042681147,0.01452,68964.0,68950.0,0.01452]
[1771042681350,0.01652,68964.0,68950.0,0.01452]
[1771042683850,0.01652,68964.0,68950.0,0.05144903]
[1771042686452,0.01652,68964.0,68951.0,0.03692903]
[1771042687767,0.14516,68972.0,68961.0,0.03692903]
[1771042688063,0.01452,68971.0,68961.0,0.03692903]
[1771042688449,0.001,68964.0,68961.0,0.03692903]
[1771042688660,0.001,68964.0,68960.0,0.01452]
[1771042688962,0.01452,68971.0,68960.0,0.01452]
[1771042690661,0.01452,68971.0,68961.0,0.005]
[1771042691063,0.01452,68971.0,68960.0,0.01452]
[1771042691259,0.01452,68971.0,68960.0,0.01752]
[1771042691660,0.01452,68971.0,68960.0,0.01452]
[1771042691856,0.01452,68971.0,68961.0,0.002]
[1771042693462,0.01452,68971.0,68960.0,0.01652]
[1771042693963,0.01452,68971.0,68960.0,0.01452]
[1771042694159,0.01452,68971.0,68961.0,0.002]
[1771042694465,0.03903317,68970.0,68955.0,0.01452]
[1771042694660,0.03903317,68970.0,68960.0,0.003]
[1771042694858,0.03903317,68970.0,68955.0,0.01452]
[1771042695264,0.03903317,68970.0,68961.0,0.003]
[1771042695465,0.03903317,68970.0,68955.0,0.01452]
[1771042696864,0.04203317,68970.0,68955.0,0.01452]
[1771042698361,0.007,68970.0,68956.0,0.05143803]
[1771042698560,0.007,68970.0,68958.0,0.03692903]
[1771042698960,0.007,68970.0,68959.0,0.03692903]
[1771042699961,0.002,68970.0,68960.0,0.01452]
[1771042700166,0.002,68970.0,68961.0,0.03692903]
[1771042700667,0.01452,68972.0,68961.0,0.03692903]
[1771042701053,0.002,68970.0,68961.0,0.03692903]
[1771042701566,0.01452,68972.0,68961.0,0.03692903]
[1771042701762,0.002,68970.0,68961.0,0.03692903]
[1771042703064,0.01452,68972.0,68961.0,0.03692903]
[1771042703267,0.01752,68972.0,68961.0,0.03692903]
[1771042703769,0.003,68970.0,68961.0,0.03692903]
[1771042704267,0.01452,68972.0,68961.0,0.03692903]
[1771042704464,0.01852,68972.0,68961.0,0.03692903]
[1771042704664,0.01852,68972.0,68962.0,0.03692903]
[1771042705968,0.003,68970.0,68962.0,0.03692903]
[1771042706359,0.01452,68972.0,68962.0,0.03692903]
[1771042706566,0.01852,68972.0,68962.0,0.03692903]
[1771042706967,0.01452,68972.0,68962.0,0.03692903]
[1771042707267,0.003,68970.0,68962.0,0.03692903]
[1771042707668,0.01852,68972.0,68962.0,0.03692903]
[1771042716677,0.01852,68972.0,68963.0,0.01452]
[1771042723386,0.05793886,68972.0,68963.0,0.01452]
[1771042723884,0.03941886,68971.0,68960.0,0.01452]
[1771042726286,0.04341886,68971.0,68960.0,0.01452]
[1771042728690,0.03941886,68971.0,68960.0,0.01452]
[1771042728890,0.04141886,68971.0,68960.0,0.01452]
[1771042731087,0.04141886,68971.0,68952.0,0.54452805]
[1771042731291,0.04141886,68971.0,68952.0,0.01452]
[1771042731690,0.04141886,68971.0,68952.0,0.05220377]
[1771042732286,0.03941886,68971.0,68952.0,0.05220377]
[1771042732490,0.04141886,68971.0,68952.0,0.05220377]
[1771042732691,0.04141886,68971.0,68953.0,0.03768377]
[1771042732891,0.03941886,68971.0,68953.0,0.03768377]
[1771042733094,0.05241886,68971.0,68953.0,0.03768377]
[1771042733490,0.04141886,68971.0,68953.0,0.03768377]
[1771042734894,0.03941886,68971.0,68953.0,0.03768377]
[1771042735092,0.04141886,68971.0,68953.0,0.03768377]
[1771042735993,0.14512,68970.0,68953.0,0.03768377]
[1771042738096,0.14712,68970.0,68953.0,0.03768377]
[1771042740492,0.18653886,68970.0,68953.0,0.03768377]
[1771042740693,0.03941886,68969.0,68952.0,0.01452]
[1771042740896,0.03699309,68967.0,68951.0,0.01452]
[1771042743301,0.03799309,68967.0,68951.0,0.01452]
[1771042744700,0.03699309,68967.0,68951.0,0.01552]
[1771042750905,0.03699309,68967.0,68951.0,0.001]
[1771042752407,0.03799309,68967.0,68950.0,0.01452]
[1771042753107,0.001,68967.0,68952.0,0.03729606]
[1771042753902,0.001,68967.0,68956.0,0.03729606]
[1771042754109,0.1316,68970.0,68959.0,0.03729606]
[1771042754308,0.1316,68970.0,68960.0,0.05181606]
[1771042754514,0.1316,68970.0,68961.0,0.01452]
[1771042755805,0.1316,68970.0,68961.0,0.01652]
[1771042756006,0.03699309,68969.0,68952.0,0.03729606]
[1771042756209,0.03699309,68969.0,68953.0,0.15964]
[1771042756406,0.03699309,68969.0,68954.0,0.01452]
[1771042758307,0.03699309,68969.0,68951.0,0.01452]
[1771042760313,0.03799309,68969.0,68951.0,0.01452]
[1771042763808,0.03799309,68969.0,68942.0,0.55904005]
[1771042764011,0.03799309,68969.0,68944.0,0.55904005]
[1771042764211,0.03799309,68969.0,68944.0,0.029024]
[1771042764505,0.03799309,68969.0,68945.0,0.014512]
[1771042764704,0.03799309,68969.0,68947.0,0.03729606]
[1771042764914,0.03799309,68969.0,68943.0,0.15964]
[1771042764915,0.03699309,68969.0,68948.0,0.01452]
[1771042765216,0.03699309,68968.0,68948.0,0.01452]
[1771042767015,0.03699309,68966.0,68948.0,0.01452]
[1771042769017,0.03799309,68966.0,68948.0,0.01452]
[1771042769216,0.03799309,68966.0,68948.0,0.029031]
[1771042769417,0.03799309,68966.0,68948.0,0.01452]
[1771042770018,0.03799309,68966.0,68948.0,0.029031]
[1771042771217,0.04999309,68966.0,68948.0,0.030031]
[1771042774734,0.14512,68965.0,68948.0,0.030031]
[1771042775021,0.01452,68964.0,68948.0,0.030031]
[1771042775224,0.01452,68964.0,68948.0,0.01552]
[1771042777220,0.05356487,68964.0,68948.0,0.01552]
[1771042777426,0.03904487,68963.0,68948.0,0.01552]
[1771042778132,0.03904487,68963.0,68948.0,0.01452]
[1771042778338,0.03904487,68963.0,68948.0,0.01552]
[1771042779430,0.14512,68962.0,68948.0,0.01552]
[1771042780338,0.14512,68962.0,68948.0,0.01452]
[1771042780537,0.14512,68962.0,68948.0,0.01752]
[1771042781537,0.14512,68962.0,68948.0,0.029031]
[1771042781738,0.14512,68962.0,68948.0,0.032031]
[1771042781933,0.14512,68962.0,68948.0,0.06892067]
[1771042782136,0.14512,68962.0,68949.0,0.03688967]
[1771042783841,0.14512,68962.0,68949.0,0.03988967]
[1771042785037,0.14512,68962.0,68949.0,0.003]
[1771042785238,0.01452,68961.0,68949.0,0.003]
[1771042786140,0.03710091,68965.0,68949.0,0.003]
[1771042786339,0.03710091,68965.0,68949.0,0.004]
[1771042786340,0.01452,68964.0,68949.0,0.004]
[1771042787436,0.01452,68964.0,68949.0,0.002]
[1771042787632,0.01452,68964.0,68949.0,0.016511]
[1771042787838,0.01452,68964.0,68950.0,0.014511]
[1771042788738,0.01452,68964.0,68952.0,0.03688967]
[1771042789143,0.01452,68964.0,68952.0,0.05139967]
[1771042789546,0.01452,68964.0,68952.0,0.01451]
[1771042789944,0.01452,68964.0,68952.0,0.01651]
[1771042790638,0.01452,68964.0,68952.0,0.01451]
[1771042790838,0.01452,68964.0,68952.0,0.01551]
[1771042791245,0.01452,68964.0,68952.0,0.001]
[1771042792239,0.01452,68964.0,68951.0,0.01451]
[1771042795444,0.01452,68964.0,68950.0,0.014511]
[1771042795650,0.01452,68964.0,68951.0,0.001]
[1771042796649,0.01452,68964.0,68950.0,0.015511]
[1771042796850,0.01452,68964.0,68951.0,0.014511]
[1771042797350,0.01452,68964.0,68951.0,0.015511]
[1771042798654,0.01452,68964.0,68951.0,0.014511]
[1771042799352,0.05162091,68964.0,68951.0,0.015511]
[1771042799542,0.05162091,68964.0,68947.0,0.54452805]
[1771042799543,0.03710091,68963.0,68947.0,0.54452805]
[1771042799741,0.03710091,68963.0,68939.0,0.6533561]
[1771042799742,0.03710091,68963.0,68945.0,0.014512]
[1771042800244,0.03710091,68963.0,68944.0,0.014512]
[1771042801755,0.03910091,68963.0,68943.0,0.029032]
[1771042801954,0.03910091,68963.0,68943.0,0.01452]
[1771042802352,0.03710091,68963.0,68943.0,0.01452]
[1771042802558,0.03910091,68963.0,68943.0,0.01452]
[1771042803157,0.03710091,68963.0,68943.0,0.01452]
[1771042803455,0.04010091,68963.0,68943.0,0.01452]
[1771042804655,0.03710091,68963.0,68943.0,0.01452]
[1771042804856,0.04010091,68963.0,68943.0,0.01452]
[1771042805958,0.03910091,68963.0,68943.0,0.01452]
[1771042810161,0.03910091,68963.0,68939.0,0.01452]
[1771042810462,0.03910091,68963.0,68933.0,0.014514]
[1771042810657,0.03910091,68963.0,68931.0,0.54452805]
[1771042810851,0.03910091,68963.0,68932.0,0.01452]
[1771042811058,0.03792553,68962.0,68932.0,0.01452]
[1771042811258,0.03792553,68960.0,68926.0,0.014516]
[1771042811557,0.03792553,68960.0,68933.0,0.001]
[1771042812267,0.03792553,68960.0,68928.0,0.01452]
[1771042812762,0.03792553,68940.0,68926.0,0.01452]
[1771042812963,0.03792553,68938.0,68926.0,0.01452]
[1771042813262,0.01452,68939.0,68927.0,0.014515]
[1771042813658,0.01452,68939.0,68927.0,0.014516]
[1771042813961,0.01452,68939.0,68929.0,0.014515]
[1771042815063,0.01952,68939.0,68929.0,0.014515]
[1771042815565,0.01552,68939.0,68929.0,0.023515]
[1771042816463,0.01552,68939.0,68931.0,0.014515]
[1771042817656,0.01552,68939.0,68929.0,0.04003]
[1771042818057,0.01552,68939.0,68929.0,0.011]
[1771042818257,0.01552,68939.0,68928.0,0.014515]
[1771042818258,0.01552,68939.0,68931.0,0.011]
[1771042818456,0.01552,68939.0,68928.0,0.014515]
[1771042818867,0.01552,68939.0,68927.0,0.01452]
[1771042818868,0.01552,68939.0,68929.0,0.011]
[1771042819460,0.01552,68939.0,68931.0,0.011]
[1771042819668,0.014513,68938.0,68927.0,0.01452]
[1771042820866,0.014513,68938.0,68929.0,0.006]
[1771042821369,0.014513,68938.0,68927.0,0.01452]
[1771042821662,0.015513,68938.0,68927.0,0.02052]
[1771042822166,0.016513,68938.0,68929.0,0.002]
[1771042822466,0.016513,68938.0,68927.0,0.01452]
[1771042822960,0.014514,68937.0,68927.0,0.01452]
[1771042823166,0.014514,68937.0,68924.0,0.14516]
[1771042823361,0.014514,68936.0,68924.0,0.14516]
[1771042823668,0.014515,68933.0,68923.0,0.01452]
[1771042823872,0.014515,68933.0,68927.0,0.004]
[1771042824166,0.014514,68934.0,68923.0,0.01452]
[1771042824467,0.014514,68934.0,68924.0,0.004]
[1771042824970,0.014514,68934.0,68923.0,0.01452]
[1771042825168,0.02,68933.0,68927.0,0.005]
[1771042825371,0.02,68933.0,68923.0,0.01452]
[1771042827072,0.029034,68935.0,68923.0,0.01452]
[1771042827271,0.026,68934.0,68924.0,0.005]
[1771042827773,0.029,68933.0,68923.0,0.01852]
[1771042828274,0.014514,68934.0,68923.0,0.01452]
[1771042829272,0.029034,68935.0,68923.0,0.01452]
[1771042829479,0.01452,68935.0,68923.0,0.01452]
[1771042830075,0.01452,68935.0,68923.0,0.029036]
[1771042830772,0.03,68933.0,68923.0,0.033036]
[1771042831366,0.01452,68935.0,68923.0,0.033036]
[1771042831569,0.04552,68935.0,68923.0,0.01852]
[1771042832071,0.03,68933.0,68923.0,0.01852]
[1771042832472,0.014514,68934.0,68923.0,0.01452]
[1771042832670,0.014514,68934.0,68923.0,0.01852]
[1771042832869,0.060034,68935.0,68923.0,0.01852]
[1771042833475,0.060034,68935.0,68923.0,0.004]
[1771042833974,0.014514,68934.0,68923.0,0.004]
[1771042834376,0.033,68933.0,68923.0,0.003]
[1771042835466,0.014514,68934.0,68923.0,0.003]
[1771042835963,0.01452,68935.0,68922.0,0.03676868]
[1771042836166,0.033,68933.0,68925.0,0.014516]
[1771042837183,0.01452,68935.0,68926.0,0.03676868]
[1771042837475,0.05052,68934.0,68927.0,0.03676868]
[1771042837670,0.05052,68934.0,68923.0,0.05328468]
[1771042838472,0.036,68933.0,68925.0,0.002]
[1771042839476,0.050514,68933.0,68925.0,0.002]
[1771042839865,0.050514,68933.0,68922.0,0.01452]
[1771042840378,0.014515,68932.0,68923.0,0.004]
[1771042840676,0.014515,68930.0,68923.0,0.004]
[1771042840873,0.014515,68930.0,68922.0,0.01452]
[1771042841077,0.014515,68930.0,68922.0,0.01852]
[1771042841477,0.014515,68930.0,68922.0,0.01452]
[1771042841670,0.014515,68930.0,68923.0,0.004]
[1771042842076,0.014515,68931.0,68922.0,0.01452]
[1771042842277,0.026,68930.0,68922.0,0.01852]
[1771042843674,0.019,68930.0,68923.0,0.004]
[1771042844282,0.019,68930.0,68922.0,0.01852]
[1771042844877,0.019,68930.0,68923.0,0.004]
[1771042846485,0.001,68930.0,68922.0,0.01752]
[1771042847088,0.001,68930.0,68923.0,0.003]
[1771042847685,0.001,68930.0,68922.0,0.01752]
[1771042848282,0.029035,68931.0,68922.0,0.01452]
[1771042848587,0.001,68930.0,68923.0,0.003]
[1771042849897,0.001,68930.0,68922.0,0.01652]
[1771042850293,0.015515,68930.0,68922.0,0.01652]
[1771042850496,0.015515,68930.0,68923.0,0.002]
[1771042850701,0.014515,68929.0,68920.0,0.00013944]
[1771042850990,0.014515,68929.0,68917.0,0.014518]
[1771042851195,0.014515,68929.0,68916.0,0.01452]
[1771042851196,0.014515,68929.0,68922.0,0.002]
[1771042851899,0.000148,68928.0,68922.0,0.002]
[1771042852103,0.01452,68927.0,68922.0,0.002]
[1771042852404,0.014516,68926.0,68916.0,0.01452]
[1771042852588,0.029036,68927.0,68923.0,0.002]
[1771042852794,0.029036,68927.0,68916.0,0.01452]
[1771042852993,0.01452,68927.0,68916.0,0.01452]
[1771042853396,0.01452,68933.0,68925.0,0.03669718]
[1771042853599,0.01452,68934.0,68927.0,0.03669718]
[1771042854101,0.01452,68934.0,68924.0,0.014516]
[1771042854600,0.005,68933.0,68925.0,0.002]
[1771042855897,0.01452,68934.0,68927.0,0.002]
[1771042856092,0.01852,68934.0,68927.0,0.002]
[1771042856497,0.01452,68934.0,68925.0,0.002]
[1771042856696,0.004,68933.0,68925.0,0.002]
[1771042857103,0.01852,68934.0,68927.0,0.002]
[1771042858906,0.004,68933.0,68925.0,0.015]
[1771042859407,0.01452,68934.0,68924.0,0.014516]
[1771042859603,0.01852,68934.0,68927.0,0.015]
[1771042860014,0.01452,68934.0,68925.0,0.014516]
[1771042860208,0.1452,68939.0,68927.0,0.014516]
[1771042860209,0.01452,68936.0,68927.0,0.014516]
[1771042860702,0.004,68934.0,68927.0,0.029516]
[1771042861410,0.004,68934.0,68927.0,0.015]
[1771042861610,0.01452,68936.0,68927.0,0.015]
[1771042862112,0.01452,68936.0,68926.0,0.06573318]
[1771042862314,0.01952,68936.0,68927.0,0.001]
[1771042862916,0.01852,68936.0,68927.0,0.001]
[1771042863418,0.1452,68948.0,68939.0,0.014513]
[1771042863606,0.01452,68950.0,68941.0,0.04891306]
[1771042863911,0.01452,68952.0,68941.0,0.03440006]
[1771042864116,0.01452,68952.0,68942.0,0.03440006]
[1771042864306,0.01452,68952.0,68943.0,0.01452]
[1771042864709,0.02903,68952.0,68943.0,0.01452]
[1771042866005,0.014511,68951.0,68943.0,0.01452]
[1771042866207,0.014511,68951.0,68943.0,0.01552]
[1771042868319,0.015511,68951.0,68943.0,0.01552]
[1771042868814,0.15972,68954.0,68944.0,0.03440006]
[1771042869312,0.001,68951.0,68944.0,0.03440006]
[1771042869813,0.15972,68954.0,68944.0,0.03440006]
[1771042870014,0.15972,68954.0,68945.0,0.03440006]
[1771042870015,0.16272,68954.0,68945.0,0.03440006]
[1771042871604,0.01451,68953.0,68945.0,0.03440006]
[1771042871810,0.001,68951.0,68945.0,0.03440006]
[1771042872115,0.15972,68954.0,68945.0,0.03440006]
[1771042872415,0.16172,68954.0,68945.0,0.03540006]
[1771042872717,0.15972,68954.0,68945.0,0.03440006]
[1771042872916,0.001,68951.0,68945.0,0.03540006]
[1771042873316,0.01451,68956.0,68945.0,0.03540006]
[1771042874313,0.01451,68956.0,68945.0,0.03440006]
[1771042874617,0.003,68954.0,68945.0,0.03540006]
[1771042874918,0.014509,68957.0,68945.0,0.03440006]
[1771042875219,0.004,68956.0,68946.0,0.01452]
[1771042876211,0.020509,68957.0,68946.0,0.01452]
[1771042876715,0.006,68957.0,68946.0,0.01452]
[1771042877317,0.020509,68957.0,68946.0,0.01452]
[1771042877514,0.029029,68958.0,68946.0,0.01452]
[1771042877714,0.005,68956.0,68946.0,0.01552]
[1771042878219,0.006,68957.0,68946.0,0.01652]
[1771042878716,0.014509,68957.0,68946.0,0.01452]
[1771042878908,0.01451,68955.0,68946.0,0.01552]
[1771042879112,0.02902,68955.0,68946.0,0.01552]
[1771042879406,0.01451,68954.0,68946.0,0.01552]
[1771042880118,0.01451,68955.0,68946.0,0.01552]
[1771042880822,0.01451,68955.0,68946.0,0.01452]
[1771042881121,0.01451,68955.0,68946.0,0.01552]
[1771042881521,0.01451,68954.0,68946.0,0.01552]
[1771042883618,0.01451,68954.0,68946.0,0.01452]
[1771042883825,0.004,68954.0,68946.0,0.01552]
[1771042884219,0.004,68954.0,68946.0,0.01452]
[1771042884525,0.004,68954.0,68946.0,0.01552]
[1771042884526,0.003,68954.0,68946.0,0.01552]
[1771042884925,0.01751,68954.0,68946.0,0.01552]
[1771042885322,0.003,68954.0,68946.0,0.01552]
[1771042891320,0.016,68954.0,68946.0,0.01552]
[1771042893427,0.014509,68957.0,68946.0,0.01552]
[1771042893631,0.015,68954.0,68946.0,0.01552]
[1771042894133,0.013,68954.0,68946.0,0.01452]
[1771042899536,0.01451,68955.0,68946.0,0.01452]
[1771042899836,0.009,68954.0,68946.0,0.01452]
[1771042900635,0.01451,68955.0,68946.0,0.01452]
[1771042900832,0.02451,68955.0,68947.0,0.01452]
[1771042901036,0.02451,68955.0,68942.0,0.03329445]
[1771042901037,0.02451,68955.0,68948.0,0.01452]
[1771042902838,0.01,68954.0,68948.0,0.01452]
[1771042903233,0.06322847,68958.0,68948.0,0.01452]
[1771042903539,0.014511,68950.0,68943.0,0.01452]
[1771042904040,0.014511,68949.0,68943.0,0.01452]
[1771042904238,0.014511,68949.0,68942.0,0.01452]
[1771042904838,0.014511,68948.0,68942.0,0.01452]
[1771042905039,0.014511,68948.0,68940.0,0.14516]
[1771042905040,0.014511,68948.0,68941.0,0.01452]
[1771042905229,0.014511,68948.0,68934.0,0.04634329]
[1771042905432,0.014511,68948.0,68935.0,0.15968]
[1771042905642,0.04871147,68947.0,68933.0,0.54452805]
[1771042905831,0.014513,68942.0,68934.0,0.15968]
[1771042906136,0.014512,68943.0,68935.0,0.01452]
[1771042906837,0.014512,68942.0,68935.0,0.01452]
[1771042908442,0.014513,68941.0,68935.0,0.01452]
[1771042908941,0.014513,68941.0,68935.0,0.01652]
[1771042909540,0.014513,68941.0,68935.0,0.01452]
[1771042909940,0.014513,68941.0,68935.0,0.01752]
[1771042912640,0.014514,68936.0,68924.0,0.04634529]
[1771042912834,0.014514,68936.0,68925.0,0.15968]
[1771042913040,0.014515,68931.0,68922.0,0.54452805]
[1771042913241,0.014515,68931.0,68923.0,0.01452]
[1771042914144,0.02903,68933.0,68925.0,0.005]
[1771042915036,0.014515,68933.0,68925.0,0.005]
[1771042915438,0.014515,68933.0,68923.0,0.01852]
[1771042915746,0.001,68931.0,68923.0,0.01852]
[1771042916040,0.014515,68933.0,68925.0,0.003]
[1771042916245,0.015515,68933.0,68925.0,0.003]
[1771042916749,0.016515,68933.0,68923.0,0.012]
[1771042916942,0.014515,68932.0,68924.0,0.01452]
[1771042917848,0.014515,68930.0,68924.0,0.01452]
[1771042918150,0.014515,68929.0,68924.0,0.01452]
[1771042918343,0.014515,68930.0,68924.0,0.01452]
[1771042918543,0.014515,68931.0,68925.0,0.012]
[1771042918846,0.014515,68932.0,68924.0,0.01452]
[1771042919039,0.002,68930.0,68924.0,0.02652]
[1771042919444,0.029035,68932.0,68924.0,0.01452]
[1771042919743,0.003,68931.0,68925.0,0.019]
[1771042920151,0.003,68930.0,68924.0,0.03352]
[1771042920750,0.003,68930.0,68919.0,0.014517]
[1771042920952,0.003,68930.0,68920.0,0.01452]
[1771042921555,0.017515,68930.0,68920.0,0.01452]
[1771042922151,0.014515,68930.0,68925.0,0.01]
[1771042922855,0.014515,68930.0,68920.0,0.01452]
[1771042923055,0.014515,68930.0,68918.0,0.014517]
[1771042923255,0.014515,68930.0,68921.0,0.01452]
[1771042923456,0.029035,68932.0,68919.0,0.01452]
[1771042923457,0.014515,68929.0,68919.0,0.01452]
[1771042923855,0.014515,68929.0,68925.0,0.008]
[1771042924453,0.014515,68929.0,68920.0,0.008]
[1771042924662,0.006,68930.0,68920.0,0.022517]
[1771042924955,0.003,68930.0,68925.0,0.014516]
[1771042925155,0.01452,68930.0,68923.0,0.04537009]
[1771042925555,0.00504,68930.0,68924.0,0.014516]
[1771042925761,0.00504,68930.0,68923.0,0.04537009]
[1771042926560,0.004,68929.0,68923.0,0.04537009]
[1771042926761,0.004,68929.0,68924.0,0.009]
[1771042928269,0.00504,68930.0,68923.0,0.04537009]
[1771042929467,0.008,68929.0,68924.0,0.003]
[1771042929864,0.00504,68930.0,68923.0,0.04537009]
[1771042930169,0.01104,68930.0,68923.0,0.04837009]
[1771042930771,0.01104,68930.0,68923.0,0.06289009]
[1771042931269,0.006,68930.0,68923.0,0.04837409]
[1771042931468,0.017,68929.0,68924.0,0.005]
[1771042932071,0.01452,68933.0,68923.0,0.04537409]
[1771042933669,0.017,68929.0,68924.0,0.005]
[1771042934677,0.01452,68933.0,68923.0,0.04537409]
[1771042934975,0.01452,68933.0,68923.0,0.05037409]
[1771042934976,0.03252,68933.0,68923.0,0.05037409]
[1771042935372,0.01452,68933.0,68923.0,0.04537409]
[1771042936480,0.03252,68933.0,68923.0,0.05037409]
[1771042940273,0.03252,68933.0,68923.0,0.06489009]
[1771042940880,0.03252,68933.0,68923.0,0.05037409]
[1771042941780,0.047034,68933.0,68923.0,0.05037409]
[1771042942875,0.03252,68933.0,68923.0,0.05037409]
[1771042946385,0.03252,68933.0,68923.0,0.06489009]
[1771042947078,0.03252,68933.0,68923.0,0.05037409]
[1771042947282,0.03252,68933.0,68924.0,0.03085409]
[1771042947486,0.04052,68933.0,68924.0,0.03085409]
[1771042948085,0.03952,68933.0,68924.0,0.03085409]
[1771042948586,0.01452,68933.0,68924.0,0.03085409]
[1771042948779,0.03952,68933.0,68924.0,0.03385409]